bitfinex-derivatives/quotes_ETHF0:USTF0_20241207
["timestamp","ask_amount","ask_price","bid_price","bid_amount"]
[1733595800510,3.92330585,4005.3,4005.2,0.17458]
[1733595800703,4.09788585,4005.4,4005.3,0.17458]
[1733595800903,0.17458,4005.4,4005.3,0.17458]
[1733595801111,4.09788585,4005.4,4005.3,0.17458]
[1733595801307,1.2064,4005.6,4004.9,4.74465558]
[1733595801308,3.92330585,4005.5,4004.9,4.74465558]
[1733595801510,3.92330585,4005.5,4005.2,0.17458]
[1733595801511,2.94173637,4005.3,4005.2,0.17458]
[1733595802206,4.09787585,4005.5,4005.3,0.17458]
[1733595802405,0.17458,4005.4,4005.3,0.17458]
[1733595803400,4.09787585,4005.5,4005.3,0.17458]
[1733595803909,3.92330585,4005.5,4005.3,0.17458]
[1733595804412,4.09787585,4005.5,4005.3,0.17458]
[1733595804607,3.92330585,4005.4,4005.3,0.17458]
[1733595805916,3.92330585,4005.4,4005.0,0.17459]
[1733595806115,1.38097,4005.6,4005.5,0.17457]
[1733595806116,1.2064,4005.6,4005.5,0.17457]
[1733595806414,0.8083,4005.6,4005.5,11.21173442]
[1733595806615,0.17455,4006.0,4005.8,0.17456]
[1733595806806,1.164,4006.1,4005.8,3.8975066]
[1733595807014,1.164,4006.1,4005.7,5.84625991]
[1733595807015,1.164,4006.1,4006.0,0.17455]
[1733595807208,1.164,4006.1,4006.0,5.36417028]
[1733595807408,1.164,4006.1,4006.0,11.21043019]
[1733595807715,1.164,4006.1,4006.0,5.18962028]
[1733595808107,1.33855,4006.1,4006.0,5.18962028]
[1733595808307,1.33855,4006.1,4006.0,5.18929066]
[1733595808608,1.164,4006.1,4006.0,3.89742822]
[1733595808805,1.33855,4006.1,4006.0,5.36483198]
[1733595809003,1.33855,4006.1,4006.0,5.36485432]
[1733595809205,1.33855,4006.1,4006.0,5.36464834]
[1733595809405,1.33855,4006.1,4006.0,4.07178953]
[1733595809606,1.33855,4006.1,4006.0,0.17455]
[1733595809811,0.3808,4006.1,4006.0,5.36535452]
[1733595810012,0.3808,4006.1,4006.0,6.13725452]
[1733595810217,0.3808,4006.1,4006.0,6.54055452]
[1733595811012,0.17452,4006.7,4006.4,0.17453]
[1733595811219,0.17452,4006.6,4006.5,4.07097924]
[1733595811917,0.17452,4006.6,4006.5,3.89644924]
[1733595812122,0.3897,4006.7,4006.4,3.89644924]
[1733595812418,0.17453,4006.5,4006.4,4.07097924]
[1733595813008,0.3897,4006.7,4006.5,0.17452]
[1733595813009,0.17452,4006.6,4006.5,0.17452]
[1733595814205,0.17452,4006.6,4006.2,0.89785558]
[1733595814406,4.90241009,4006.3,4006.2,1.07239558]
[1733595815512,4.90241009,4006.4,4006.2,1.07239558]
[1733595815710,4.90241009,4006.4,4006.3,0.17454]
[1733595815911,0.17453,4006.5,4006.4,0.17453]
[1733595820321,0.17454,4006.4,4006.3,0.17453]
[1733595820619,5.07405755,4006.4,4006.3,0.17453]
[1733595821018,0.17454,4006.4,4006.3,0.17453]
[1733595821318,0.17453,4006.5,4006.4,0.17453]
[1733595825720,0.17453,4006.6,4006.5,0.17452]
[1733595826220,0.17453,4006.5,4006.4,0.17453]
[1733595829123,0.17453,4006.6,4006.5,0.17452]
[1733595831517,0.17453,4006.5,4006.4,0.17453]
[1733595836224,5.07404755,4006.5,4006.4,0.17453]
[1733595837324,0.3897,4006.7,4006.3,0.17453]
[1733595837325,0.17454,4006.4,4006.3,0.17453]
[1733595837521,5.07336161,4006.4,4006.3,0.17453]
[1733595837726,0.17454,4006.4,4006.3,0.17453]
[1733595838324,5.07336161,4006.4,4006.3,0.17453]
[1733595838723,0.17455,4006.2,4006.1,0.17455]
[1733595838921,3.91936631,4006.2,4006.0,5.28085558]
[1733595839120,4.46981631,4006.1,4006.0,0.4033]
[1733595839323,0.17455,4006.0,4005.9,0.17455]
[1733595839538,4.09453112,4006.0,4005.9,0.17455]
[1733595839727,0.17455,4006.0,4005.9,0.17455]
[1733595839924,0.17455,4006.0,4005.8,0.81356]
[1733595839925,0.17455,4005.9,4005.8,0.81356]
[1733595840320,4.09453112,4005.9,4005.8,0.639]
[1733595840628,3.91998112,4005.9,4005.7,0.89785558]
[1733595840833,0.17456,4005.8,4005.7,1.07241558]
[1733595841234,4.09454112,4005.8,4005.7,1.07241558]
[1733595841528,0.17456,4005.8,4005.7,1.07241558]
[1733595842131,4.09454112,4005.8,4005.7,1.07241558]
[1733595842330,4.09454112,4005.8,4005.7,0.89785558]
[1733595842531,4.09454112,4005.8,4005.7,1.07241558]
[1733595842725,0.17456,4005.8,4005.7,1.07241558]
[1733595843326,0.17456,4005.8,4005.7,11.93170459]
[1733595845231,0.17456,4005.8,4005.7,6.08703072]
[1733595845436,0.17456,4005.8,4005.7,11.93240773]
[1733595846132,0.17456,4005.8,4005.7,6.08703072]
[1733595846334,0.17456,4005.8,4005.7,6.26159072]
[1733595846537,0.17456,4005.8,4005.7,6.08703072]
[1733595846954,0.17456,4005.8,4005.7,6.26159072]
[1733595847148,0.3759,4006.1,4005.7,6.08703072]
[1733595847350,0.3759,4006.1,4006.0,5.84581696]
[1733595847550,0.55045,4006.1,4006.0,5.18917514]
[1733595847746,0.55045,4006.1,4006.0,11.0349921]
[1733595848063,0.55045,4006.1,4006.0,5.18917514]
[1733595849855,0.55045,4006.1,4006.0,11.0349921]
[1733595850156,0.55045,4006.1,4006.0,11.2095421]
[1733595850952,0.55045,4006.1,4006.0,11.21423373]
[1733595851348,0.55045,4006.1,4006.0,5.19386677]
[1733595851551,0.55045,4006.1,4006.0,5.36841677]
[1733595852559,0.55045,4006.1,4006.0,5.19386677]
[1733595853054,0.55045,4006.1,4006.0,11.04672146]
[1733595853559,0.55045,4006.1,4006.0,5.19386677]
[1733595853756,0.55045,4006.1,4006.0,11.04672146]
[1733595854058,0.55045,4006.1,4006.0,5.36841677]
[1733595854258,0.55045,4006.1,4006.0,11.04590946]
[1733595855962,0.55045,4006.1,4006.0,5.19764983]
[1733595856954,0.55045,4006.1,4006.0,11.05226119]
[1733595857758,0.55045,4006.1,4006.0,5.19764983]
[1733595858253,0.3759,4006.1,4005.7,4.49675558]
[1733595858455,4.1016906,4005.9,4005.8,0.17455]
[1733595858654,3.9271306,4005.9,4005.8,1.07241558]
[1733595858862,3.9271306,4006.1,4006.0,0.17455]
[1733595859466,3.9271306,4006.2,4006.1,0.17455]
[1733595859757,3.9271306,4006.2,4006.1,1.71140558]
[1733595860359,3.92674407,4006.2,4006.1,1.71140558]
[1733595860565,0.17454,4006.3,4006.1,1.71140558]
[1733595860765,0.17454,4006.3,4006.2,0.4044]
[1733595861063,0.17454,4006.3,4006.2,0.57894]
[1733595863564,5.48255161,4006.4,4006.3,0.17454]
[1733595863759,0.58373,4006.4,4006.3,0.17454]
[1733595864063,0.17454,4006.3,4006.2,0.57894]
[1733595864367,4.10094183,4006.3,4006.2,0.57894]
[1733595865567,0.17454,4006.3,4006.2,0.4044]
[1733595865764,0.17454,4006.2,4006.1,0.639]
[1733595866467,0.17454,4006.2,4006.1,5.83711843]
[1733595866666,0.17454,4006.2,4006.1,6.01166843]
[1733595866967,0.17454,4006.2,4006.1,11.86601936]
[1733595867166,0.17454,4006.2,4006.1,6.01166843]
[1733595867864,0.17454,4006.3,4006.2,0.17454]
[1733595868070,0.17454,4006.3,4006.2,14.06586055]
[1733595869267,0.17453,4006.6,4006.5,0.17452]
[1733595869475,0.17453,4006.6,4006.5,5.37263843]
[1733595869766,0.17453,4006.6,4006.5,5.19811843]
[1733595870466,0.17453,4006.6,4006.5,6.27050401]
[1733595870765,0.17453,4006.6,4006.5,6.26953774]
[1733595871168,0.4117,4006.7,4006.5,6.26953774]
[1733595871169,2.94485552,4007.0,4006.9,0.17451]
[1733595871468,2.94485552,4007.0,4006.9,12.12039518]
[1733595871469,0.17451,4007.0,4006.9,12.12039518]
[1733595871881,0.1745,4007.1,4007.0,0.17451]
[1733595872065,0.1745,4007.1,4007.0,11.22158988]
[1733595872474,0.1745,4007.1,4007.0,5.19612994]
[1733595873183,0.1745,4007.1,4007.0,11.04307829]
[1733595873368,0.1745,4007.1,4006.9,1.45076558]
[1733595873369,0.17451,4007.0,4006.9,1.45076558]
[1733595874173,0.17451,4007.0,4006.9,1.85026558]
[1733595874369,0.17451,4007.0,4006.9,1.67575558]
[1733595875375,0.17451,4007.0,4006.7,3.38232]
[1733595875376,3.92647403,4007.1,4006.7,3.2078]
[1733595875572,0.17454,4006.3,4006.2,3.8468]
[1733595876379,0.55414,4006.3,4006.2,3.8468]
[1733595876969,0.55414,4006.3,4006.2,3.2078]
[1733595877168,0.17456,4005.7,4005.6,3.2078]
[1733595877367,0.17456,4005.7,4005.6,4.10565558]
[1733595877571,2.94096882,4005.9,4005.6,4.10565558]
[1733595877772,3.11551882,4006.1,4005.7,0.4119]
[1733595877978,3.11550882,4006.2,4006.1,0.17455]
[1733595878366,2.94096882,4006.2,4006.1,3.38235]
[1733595878680,2.94096882,4006.5,4006.4,0.17453]
[1733595878874,3.11548882,4006.6,4006.4,1.07238558]
[1733595879179,0.17452,4006.6,4006.5,0.3831]
[1733595880085,3.11548882,4006.6,4006.5,0.3831]
[1733595880279,0.17452,4006.6,4006.5,0.3831]
[1733595880581,0.17452,4006.6,4006.5,13.3771833]
[1733595880775,0.17452,4006.6,4006.5,5.57346721]
[1733595880981,0.17452,4006.6,4006.5,13.3771833]
[1733595881481,0.17452,4006.6,4006.5,5.57346721]
[1733595883183,0.17452,4006.6,4006.5,11.0356628]
[1733595883475,0.4122,4006.8,4006.5,5.19089892]
[1733595883679,0.17453,4006.5,4006.4,5.84529559]
[1733595883881,0.17453,4006.5,4006.4,11.03609632]
[1733595884368,0.89785558,4006.5,4006.4,3.89752002]
[1733595884574,0.89785558,4006.5,4006.3,3.89752002]
[1733595884773,0.94083,4006.4,4006.3,3.89752002]
[1733595885886,0.94083,4006.4,4006.3,5.19151103]
[1733595886683,0.94083,4006.4,4006.3,11.03680662]
[1733595888673,0.17454,4006.2,4006.1,1.28155558]
[1733595889069,3.11482401,4006.2,4006.1,1.28155558]
[1733595889275,3.50932401,4006.2,4006.1,1.28155558]
[1733595890682,0.56904,4006.2,4006.1,1.28155558]
[1733595890981,3.50932401,4006.2,4006.1,1.28155558]
[1733595892578,0.56904,4006.2,4006.1,1.28155558]
[1733595893177,3.50932401,4006.2,4006.1,1.28155558]
[1733595893579,0.56904,4006.2,4006.1,1.28155558]
[1733595893982,0.56904,4006.2,4006.1,1.45610558]
[1733595894283,0.17454,4006.3,4006.2,0.17454]
[1733595894475,0.17454,4006.3,4006.1,1.45609558]
[1733595894782,3.11481401,4006.5,4006.3,0.17453]
[1733595894977,3.11480401,4006.6,4006.5,0.17453]
[1733595895182,3.11480401,4006.6,4006.4,4.10565558]
[1733595895183,3.11480401,4006.6,4006.4,4.28018558]
[1733595895475,3.11480401,4006.6,4006.5,0.7944]
[1733595895686,0.17452,4006.6,4006.5,5.9867109]
[1733595895988,0.17452,4006.6,4006.5,13.79042699]
[1733595896982,0.17452,4006.6,4006.5,5.9867109]
[1733595897387,0.17452,4006.6,4006.5,5.98700535]
[1733595898083,0.17452,4006.6,4006.5,5.19260535]
[1733595898280,0.17452,4006.6,4006.5,11.04086044]
[1733595898585,0.17452,4006.6,4006.5,5.19260535]
[1733595899286,0.17452,4006.6,4006.5,11.04086044]
[1733595900585,0.3966,4006.7,4006.4,3.2078]
[1733595900586,1.29445558,4006.7,4006.4,3.8998221]
[1733595900880,1.29445558,4006.7,4005.8,9.73710044]
[1733595900881,0.17453,4006.4,4006.3,3.8998221]
[1733595901085,0.17453,4006.4,4006.3,3.90043239]
[1733595901273,0.3955,4006.4,4006.3,5.19517747]
[1733595901476,0.17453,4006.4,4006.3,5.36970747]
[1733595901677,0.17453,4006.4,4006.3,13.56892356]
[1733595902382,0.17453,4006.4,4006.3,23.95744164]
[1733595902784,0.17453,4006.4,4006.3,13.56892356]
[1733595903385,0.17453,4006.4,4006.3,13.39439356]
[1733595903787,0.17453,4006.4,4006.3,0.3955]
[1733595903993,0.17453,4006.4,4006.3,0.57004]
[1733595904883,0.17453,4006.4,4006.3,0.3955]
[1733595905984,2.94028401,4006.4,4006.2,4.10565558]
[1733595906286,0.17454,4006.3,4006.2,4.10565558]
[1733595906488,0.17454,4006.3,4006.2,3.2078]
[1733595906688,3.11482401,4006.3,4006.2,3.2078]
[1733595906884,0.58934,4006.3,4006.2,3.2078]
[1733595907393,0.17455,4006.1,4006.0,0.638]
[1733595907687,3.1169101,4006.1,4006.0,0.638]
[1733595908192,3.1169101,4006.1,4005.7,7.10803272]
[1733595908193,0.55545,4006.1,4005.7,3.2078]
[1733595908489,0.17456,4005.8,4005.7,3.2078]
[1733595908684,3.11680606,4005.8,4005.7,3.2078]
[1733595909992,0.17458,4005.2,4004.8,3.90023272]
[1733595910187,0.1746,4004.8,4004.7,3.90023272]
[1733595910386,0.17461,4004.7,4004.6,0.89785558]
[1733595910788,0.17461,4004.7,4004.6,26.64093629]
[1733595910989,0.17461,4004.7,4004.6,16.90383585]
[1733595911191,0.17461,4004.7,4004.6,16.00598027]
[1733595911492,0.17461,4004.7,4004.6,5.61126009]
[1733595911692,0.17461,4004.7,4004.6,11.46314574]
[1733595912286,0.17461,4004.7,4004.6,5.61126009]
[1733595912492,0.17461,4004.7,4004.6,5.6067701]
[1733595912690,0.17461,4004.7,4004.6,0.4139]
[1733595913495,0.17461,4004.7,4004.6,4.31142288]
[1733595913794,0.17461,4004.7,4004.6,0.4139]
[1733595915097,3.64428,4005.2,4004.6,0.4139]
[1733595915098,0.1746,4004.8,4004.7,0.1746]
[1733595915300,0.1746,4004.8,4004.7,12.74067936]
[1733595915593,0.8046,4005.9,4004.7,6.72395859]
[1733595915793,0.17459,4005.1,4005.0,3.89350708]
[1733595915988,0.17459,4005.1,4005.0,11.43219072]
[1733595916199,0.17459,4005.1,4005.0,11.43047405]
[1733595916500,0.17459,4005.1,4005.0,11.60383366]
[1733595916700,0.17459,4005.1,4005.0,11.42924366]
[1733595917107,0.17459,4005.1,4005.0,5.5919301]
[1733595917402,0.17459,4005.1,4005.0,11.42778827]
[1733595917794,0.17459,4005.1,4005.0,12.32564385]
[1733595918106,0.17459,4005.1,4005.0,6.48574909]
[1733595918401,0.17459,4005.1,4005.0,5.58802179]
[1733595918598,0.89785558,4005.4,4005.0,3.89034537]
[1733595918803,1.28385558,4005.4,4005.0,3.89066492]
[1733595919100,0.17459,4005.1,4005.0,3.89066492]
[1733595919700,0.17459,4005.0,4004.9,3.89066492]
[1733595920296,0.89785558,4005.1,4004.8,3.89066492]
[1733595920602,0.3966,4005.2,4004.6,3.89066492]
[1733595920603,5.3966,4005.2,4004.6,3.89066492]
[1733595920903,0.17461,4004.6,4004.5,3.89066492]
[1733595921702,0.43649,4005.0,4004.5,3.89066492]
[1733595921998,0.1746,4004.9,4004.5,3.89119202]
[1733595922199,0.43649,4005.0,4004.4,3.89119202]
[1733595922400,0.17461,4004.5,4004.4,3.89119202]
[1733595923403,0.17462,4004.4,4004.3,3.89119202]
[1733595923604,0.17462,4004.3,4004.2,3.89119202]
[1733595924298,0.43653,4004.7,4004.1,3.89119202]
[1733595924502,0.17463,4004.2,4004.1,3.89119202]
[1733595924905,0.17463,4004.1,4004.0,6.64949817]
[1733595925100,0.17463,4004.1,4004.0,11.82928515]
[1733595925402,0.17463,4004.1,4004.0,5.17978698]
[1733595925600,3.2078,4004.1,4003.7,3.89025544]
[1733595925807,3.2078,4004.1,4003.5,0.17466]
[1733595926017,0.17465,4003.6,4003.5,0.17466]
[1733595926602,0.17464,4003.9,4003.6,0.17465]
[1733595926811,0.43658,4004.2,4003.5,0.17466]
[1733595927111,0.17465,4003.6,4003.5,0.17466]
[1733595927298,1.1897,4004.5,4003.4,1.0314]
[1733595927504,0.17464,4003.9,4003.5,0.17466]
[1733595927702,1.1897,4004.5,4003.8,0.17465]
[1733595927917,0.17464,4004.0,4003.9,0.4001]
[1733595928111,0.17464,4004.0,4003.9,0.8056]
[1733595928610,0.17463,4004.1,4003.9,0.98024]
[1733595928910,0.17463,4004.1,4004.0,0.4147]
[1733595929506,0.17463,4004.1,4004.0,0.58934]
[1733595929711,3.2078,4004.6,4004.0,1.0537]
[1733595929913,0.17461,4004.5,4004.4,0.17462]
[1733595930104,3.2078,4004.6,4004.0,1.0537]
[1733595930304,0.17462,4004.4,4004.2,0.17462]
[1733595930512,0.17462,4004.4,4004.0,1.0537]
[1733595930708,3.2078,4004.6,4004.0,1.0537]
[1733595930907,3.2078,4004.6,4004.1,1.9452201]
[1733595931109,0.1746,4004.8,4004.1,1.9452201]
[1733595931418,0.1746,4004.8,4004.7,0.17461]
[1733595931816,3.2078,4005.2,4004.7,0.17461]
[1733595932012,0.1746,4005.0,4004.8,0.7753]
[1733595932213,0.1746,4005.0,4004.9,0.4062]
[1733595934314,0.1746,4005.0,4004.9,0.5808]
[1733595934518,0.1746,4005.0,4004.9,0.4062]
[1733595935312,0.1746,4005.0,4004.8,0.9499]
[1733595935313,3.2078,4005.2,4004.8,0.3848]
[1733595935529,3.2078,4005.2,4004.3,3.9706]
[1733595935816,0.17461,4004.7,4004.5,0.17461]
[1733595936011,0.17461,4004.7,4004.6,0.17461]
[1733595936718,3.64427,4005.2,4004.4,0.3803]
[1733595936921,0.17461,4004.6,4004.5,0.17461]
[1733595937221,0.17461,4004.5,4004.4,0.55492]
[1733595937413,0.43648,4005.1,4004.4,0.3803]
[1733595937716,0.17461,4004.6,4004.5,0.17461]
[1733595939317,0.1746,4004.8,4004.7,0.1746]
[1733595940021,0.1746,4004.9,4004.8,0.1746]
[1733595942017,0.17461,4004.8,4004.7,0.1746]
[1733595943822,0.17459,4005.1,4005.0,0.17459]
[1733595946922,0.1746,4005.0,4004.9,0.17459]
[1733595953025,2.94245398,4005.2,4004.6,0.89757711]
[1733595953326,2.94245398,4005.2,4005.1,0.17459]
[1733595953734,3.31725398,4005.4,4005.3,0.17458]
[1733595954325,2.94245398,4005.4,4005.3,1.07215711]
[1733595954527,2.94245398,4005.5,4005.3,0.89757711]
[1733595954726,2.94245398,4005.5,4005.4,0.17458]
[1733595955030,3.11702398,4005.6,4005.3,0.89757711]
[1733595955229,0.17457,4005.6,4005.5,0.17457]
[1733595955926,0.17457,4005.6,4005.5,4.06482544]
[1733595956434,0.17457,4005.6,4005.5,0.17457]
[1733595956634,0.3983,4005.7,4005.4,3.89025544]
[1733595956822,0.57287,4005.7,4005.6,0.17457]
[1733595958727,0.17457,4005.6,4005.5,4.06482544]
[1733595959332,0.17457,4005.6,4005.5,0.17457]
[1733595961530,0.3983,4005.7,4005.4,3.89025544]
[1733595961738,0.17457,4005.5,4005.4,4.06482544]
[1733595962335,0.17457,4005.5,4005.4,4.07018061]
[1733595962934,0.17457,4005.6,4005.5,0.17457]
[1733595963135,0.3983,4005.7,4005.6,0.17457]
[1733595963438,0.17456,4005.8,4005.7,0.17456]
[1733595963635,3.38236,4005.9,4005.8,0.17456]
[1733595963842,3.38235,4005.9,4005.8,0.17456]
[1733595964230,7.30191056,4005.9,4005.8,0.17456]
[1733595964435,4.09411056,4005.9,4005.8,0.17456]
[1733595964631,3.91956056,4005.9,4005.8,0.17456]
[1733595964828,4.09411056,4006.0,4005.6,1.27957711]
[1733595965034,4.09411056,4006.0,4005.9,0.17455]
[1733595966438,4.09411056,4006.0,4005.6,1.27957711]
[1733595966439,4.09411056,4006.1,4005.6,1.71599711]
[1733595966627,2.93833751,4005.8,4005.7,0.17456]
[1733595967541,2.93833751,4005.9,4005.8,0.17456]
[1733595968734,2.93833751,4006.0,4005.9,0.17455]
[1733595969338,4.09410056,4006.2,4005.6,1.27957711]
[1733595969537,1.07211711,4006.2,4006.1,0.17455]
[1733595969735,0.17454,4006.2,4006.1,0.17455]
[1733595969937,0.3963,4006.3,4006.2,0.17454]
[1733595969938,0.57084,4006.3,4006.2,0.17454]
[1733595970439,4.48741211,4006.3,4006.2,0.17454]
[1733595971138,0.57084,4006.3,4006.2,0.17454]
[1733595975536,0.17454,4006.2,4006.1,0.17454]
[1733595977546,0.17456,4005.9,4005.8,0.17456]
[1733595979545,0.17456,4005.9,4005.6,4.48737711]
[1733595979546,3.91657211,4006.0,4005.6,4.48737711]
[1733595979743,2.93841758,4005.8,4005.7,0.17456]
[1733595980345,2.93841758,4005.9,4005.6,4.48737711]
[1733595980648,2.93841758,4005.9,4005.8,0.17456]
[1733595981046,2.93841758,4005.9,4005.7,0.3924]
[1733595981245,2.93841758,4005.9,4005.8,0.17456]
[1733595983053,2.93841758,4005.9,4005.7,0.3924]
[1733595983054,2.93841758,4006.0,4005.9,0.17455]
[1733595983251,4.09111211,4006.2,4006.1,0.17455]
[1733595983455,4.09245684,4006.2,4006.1,0.17455]
[1733595983655,3.91791684,4006.2,4005.7,0.3924]
[1733595983951,0.17455,4006.1,4006.0,0.17455]
[1733595984348,4.09246684,4006.1,4006.0,0.17455]
[1733595985349,0.17455,4006.1,4006.0,0.17455]
[1733595985650,4.09246684,4006.1,4006.0,0.17455]
[1733595985855,0.17456,4005.9,4005.8,0.17455]
[1733595986058,0.17456,4005.9,4005.8,4.07016061]
[1733595988057,0.43636,4006.2,4005.7,4.28801061]
[1733595988250,0.17456,4005.8,4005.7,0.56696]
[1733595988446,0.17456,4005.8,4005.7,5.74732173]
[1733595988658,0.17456,4005.8,4005.7,11.5831799]
[1733595989960,0.17456,4005.8,4005.7,5.74732173]
[1733595990168,0.3963,4006.3,4005.7,5.57276173]
[1733595990456,0.17456,4005.9,4005.8,4.06414191]
[1733595990864,0.17456,4005.9,4005.8,5.35576224]
[1733595991851,0.17456,4005.9,4005.8,4.06450898]
[1733595992259,0.17456,4005.9,4005.8,0.17455]
[1733595992455,0.17456,4005.9,4005.8,5.35651015]
[1733595993454,0.17456,4005.9,4005.8,11.19236832]
[1733595994153,0.17456,4005.9,4005.8,0.17455]
[1733595994763,3.11544025,4005.9,4005.8,0.17455]
[1733595994962,3.11539768,4005.9,4005.8,0.17455]
[1733595995160,2.94083768,4005.9,4005.8,0.17455]
[1733595995470,0.17458,4005.3,4005.2,3.38238]
[1733595995765,0.17458,4005.3,4005.2,0.17458]
[1733595996366,3.11612649,4005.4,4005.3,0.17458]
[1733595997860,0.17458,4005.3,4005.2,1.07215711]
[1733595998463,3.11712545,4005.3,4005.2,1.07215711]
[1733595998859,2.94254545,4005.3,4005.2,1.07215711]
[1733595999064,0.17457,4005.5,4005.2,0.89757711]
[1733595999363,2.94310346,4005.3,4005.2,1.07215711]
[1733595999564,2.94310346,4005.4,4005.2,0.89757711]
[1733595999758,2.94310346,4005.4,4005.3,0.17458]
[1733595999963,0.17458,4005.4,4005.3,0.17458]
[1733596000164,3.1181171,4005.4,4005.3,0.17458]
[1733596000360,3.11835176,4005.4,4005.3,0.17458]
[1733596000664,3.11834513,4005.4,4005.3,0.17458]
[1733596000868,0.17458,4005.4,4005.3,0.17458]
[1733596001064,0.17458,4005.4,4005.3,15.74375558]
[1733596001266,0.17458,4005.5,4005.4,0.17457]
[1733596001573,0.17458,4005.5,4005.4,15.74374558]
[1733596002673,0.17458,4005.5,4005.4,15.56917558]
[1733596002864,0.17458,4005.5,4005.4,23.36311137]
[1733596003068,0.17458,4005.5,4005.4,23.36589395]
[1733596004266,0.17458,4005.5,4005.4,12.98366098]
[1733596004474,0.17458,4005.5,4005.4,23.36777625]
[1733596004674,0.17458,4005.5,4005.4,23.36990841]
[1733596004879,0.17458,4005.5,4005.4,5.19199087]
[1733596005279,0.17458,4005.5,4005.4,11.04001031]
[1733596005784,0.17458,4005.5,4005.4,5.19199087]
[1733596006478,0.17458,4005.5,4005.4,5.36657087]
[1733596006683,0.17458,4005.5,4005.4,5.19199087]
[1733596007079,0.17458,4005.5,4005.4,11.03877337]
[1733596007384,0.17458,4005.5,4005.4,11.03884049]
[1733596008087,0.89757711,4005.6,4005.4,3.89758539]
[1733596008279,0.17457,4005.5,4005.4,3.89758539]
[1733596008482,0.89757711,4005.6,4005.4,3.89747239]
[1733596008688,0.17457,4005.5,4005.4,3.89747239]
[1733596009388,0.89757711,4005.6,4005.4,3.89747239]
[1733596009580,0.17458,4005.4,4005.3,4.07205239]
[1733596009981,0.17458,4005.4,4005.3,2.20365239]
[1733596010286,8.74988997,4005.4,4004.3,5.84637809]
[1733596010486,0.17461,4004.6,4004.5,0.17461]
[1733596010787,0.17461,4004.7,4004.6,0.17461]
[1733596011180,0.17461,4004.7,4004.6,5.13464405]
[1733596011480,0.17461,4004.6,4004.4,5.84637809]
[1733596011684,0.17461,4004.6,4004.3,1.1713]
[1733596011685,3.84139911,4005.2,4004.3,7.01767809]
[1733596011876,0.17459,4005.1,4004.4,10.97977696]
[1733596012082,0.17461,4004.6,4004.4,5.84637809]
[1733596012278,0.17461,4004.5,4004.3,7.01767809]
[1733596012595,0.17461,4004.5,4004.3,1.1713]
[1733596012887,0.17463,4004.2,4004.1,5.84637809]
[1733596013091,0.17465,4003.8,4003.7,5.84637809]
[1733596013279,0.17465,4003.8,4003.7,5.13410833]
[1733596013486,3.64437,4004.3,4003.5,5.84637809]
[1733596013487,0.17465,4003.7,4003.5,5.84637809]
[1733596013680,3.64437,4004.3,4003.4,7.9429552]
[1733596013887,0.17465,4003.6,4003.5,5.13165915]
[1733596014582,0.17465,4003.6,4003.4,7.9429552]
[1733596014783,0.17465,4003.6,4003.5,5.12899156]
[1733596015084,0.17465,4003.6,4003.4,7.9429552]
[1733596015286,0.17465,4003.6,4003.4,2.09657711]
[1733596016385,3.64437,4004.3,4003.4,2.09657711]
[1733596016588,0.17466,4003.5,4003.4,2.09657711]
[1733596016986,0.17466,4003.5,4003.4,2.74557711]
[1733596018780,0.17466,4003.5,4003.4,1.199]
[1733596018980,0.17466,4003.5,4003.4,1.848]
[1733596021390,0.17466,4003.5,4003.4,1.199]
[1733596022185,0.17466,4003.5,4003.4,0.7959]
[1733596022387,0.89757711,4003.6,4003.1,3.2078]
[1733596022593,5.00295422,4003.2,4001.6,5.84637809]
[1733596022782,0.17474,4001.7,4001.4,3.2078]
[1733596022981,0.17474,4001.6,4001.5,0.3951]
[1733596023185,0.89757711,4002.2,4001.5,11.36415887]
[1733596023487,0.17474,4001.6,4001.5,0.3951]
[1733596030598,1.94803397,4001.9,4001.3,0.3856]
[1733596030905,1.94803397,4001.9,4000.0,7.79393579]
[1733596030906,0.17482,3999.8,3998.9,9.67891092]
[1733596031195,12.544,4000.2,3998.2,11.61627877]
[1733596031196,3.2078,3999.4,3998.2,3.2078]
[1733596031397,3.2078,3999.4,3998.2,9.01418109]
[1733596031599,3.2078,3999.4,3998.2,5.80638109]
[1733596031805,3.38266,3999.0,3998.3,0.17489]
[1733596032099,3.2078,3999.4,3998.3,6.50638109]
[1733596032305,3.2078,3999.4,3998.4,0.797]
[1733596032502,3.2078,3999.4,3998.5,0.17488]
[1733596032806,3.2078,3999.4,3998.7,1.94803397]
[1733596033099,3.925096,4000.9,3999.2,0.17485]
[1733596033100,3.38261,4000.0,3999.2,0.17485]
[1733596033401,3.38261,4000.0,3999.3,0.4007]
[1733596033592,0.1748,4000.2,3999.5,3.2078]
[1733596033909,3.2078,4000.6,3999.6,3.9078]
[1733596034200,3.2078,4000.6,3999.7,0.17482]
[1733596034397,0.17481,4000.2,3999.6,9.71418109]
[1733596034601,0.1748,4000.2,3999.6,9.88901109]
[1733596034905,0.1748,4000.2,3999.6,9.71418109]
[1733596035100,0.1748,4000.2,3999.6,9.88901109]
[1733596035693,0.1748,4000.2,3999.6,9.71418109]
[1733596036004,0.24997187,4000.5,3999.6,9.71418109]
[1733596036203,0.1748,4000.2,3999.6,9.88901109]
[1733596036698,0.24997187,4000.5,3999.6,9.71418109]
[1733596037003,0.1748,4000.2,3999.6,9.71418109]
[1733596037192,0.1748,4000.3,3999.7,0.17482]
[1733596037397,0.1748,4000.3,3999.7,5.98120109]
[1733596037797,0.24997187,4000.5,3999.7,5.80638109]
[1733596037997,0.17481,4000.2,3999.7,5.80638109]
[1733596038201,0.17481,4000.1,3999.7,5.80638109]
[1733596038400,0.17481,4000.1,3999.7,2.05752248]
[1733596038605,0.24997187,4000.5,3999.7,2.05752248]
[1733596038606,0.17479,4000.4,3999.7,2.05752248]
[1733596038807,0.17481,4000.0,3999.7,2.05752248]
[1733596039195,0.17481,4000.1,3999.7,2.05752248]
[1733596040598,0.24997187,4000.5,3999.7,2.05752248]
[1733596040802,0.24997187,4000.5,3999.6,0.7]
[1733596041004,0.17483,3999.7,3999.6,0.7]
[1733596041205,0.17482,3999.7,3999.6,0.7]